bitfinex/quotes_BTCUSD_20250617
["timestamp","ask_amount","ask_price","bid_price","bid_amount"]
[1750151552302,0.03481157,106550.0,106540.0,0.84701335]
[1750151552950,0.22251687,106550.0,106540.0,0.82824222]
[1750151553394,0.47003181,106550.0,106540.0,0.81885652]
[1750151554099,0.81003181,106550.0,106540.0,0.361]
[1750151554325,0.80064699,106550.0,106540.0,0.361]
[1750151554533,0.80064699,106550.0,106540.0,0.151]
[1750151554534,1.29394699,106550.0,106540.0,0.151]
[1750151554760,1.29394699,106550.0,106540.0,0.001]
[1750151555193,1.29394699,106550.0,106540.0,0.151]
[1750151555404,1.43089621,106550.0,106540.0,0.15]
[1750151555615,1.42151113,106550.0,106530.0,0.02]
[1750151555845,1.42151113,106550.0,106530.0,0.17]
[1750151555846,0.84745876,106540.0,106530.0,0.17]
[1750151556083,0.61494382,106540.0,106530.0,0.17]
[1750151557209,0.38242888,106540.0,106530.0,0.17]
[1750151557417,0.61494382,106540.0,106530.0,0.17]
[1750151558041,0.38242888,106540.0,106530.0,0.17]
[1750151558270,0.45982382,106540.0,106530.0,0.17]
[1750151558501,0.4542097,106540.0,106530.0,0.17]
[1750151558720,0.4692097,106540.0,106530.0,0.17]
[1750151558960,0.4712097,106540.0,106530.0,0.17]
[1750151559398,0.8112097,106540.0,106530.0,0.17]
[1750151559640,0.21889595,106520.0,106510.0,0.15]
[1750151559863,0.64733089,106520.0,106510.0,0.15]
[1750151562182,0.65033089,106520.0,106510.0,0.15]
[1750151562423,0.65033089,106520.0,106510.0,0.151]
[1750151562848,0.22189595,106520.0,106510.0,0.15]
[1750151563064,0.45441089,106520.0,106510.0,0.15]
[1750151563273,0.61253089,106520.0,106510.0,0.15]
[1750151563501,0.65333089,106520.0,106510.0,0.15]
[1750151563707,0.61253089,106520.0,106510.0,0.15]
[1750151567895,0.64108502,106520.0,106510.0,0.15]
[1750151569122,1.13438502,106520.0,106510.0,0.15]
[1750151569339,1.23053424,106520.0,106510.0,0.15]
[1750151569780,1.57053424,106520.0,106510.0,0.15]
[1750151570938,1.47438502,106520.0,106510.0,0.15]
[1750151571646,1.51518502,106520.0,106510.0,0.15]
[1750151573963,0.5653505,106500.0,106490.0,0.22159097]
[1750151574134,0.79786544,106500.0,106490.0,0.31783273]
[1750151574557,0.78847657,106500.0,106490.0,0.31783291]
[1750151574763,0.78847657,106500.0,106490.0,0.30844337]
[1750151574967,0.77908743,106500.0,106490.0,0.30844337]
[1750151575307,0.77913461,106500.0,106490.0,0.33761448]
[1750151576121,0.77913461,106500.0,106490.0,0.31883383]
[1750151576339,0.77913461,106500.0,106490.0,0.3282242]
[1750151576544,0.77913461,106500.0,106490.0,0.33761448]
[1750151576755,0.34943641,106500.0,106490.0,0.34700459]
[1750151576977,0.3682153,106500.0,106490.0,0.49700397]
[1750151577192,0.56539839,106500.0,106490.0,0.50331404]
[1750151577647,0.37760497,106500.0,106490.0,0.51270397]
[1750151577879,0.3682153,106500.0,106490.0,0.51270397]
[1750151578090,0.55600872,106500.0,106490.0,0.51270397]
[1750151578492,0.3682153,106500.0,106490.0,0.51270397]
[1750151578735,0.36821433,106500.0,106490.0,0.51270397]
[1750151578954,0.37760364,106500.0,106490.0,0.51270397]
[1750151579605,0.38699313,106500.0,106490.0,0.51270397]
[1750151579999,0.57478655,106500.0,106490.0,0.51270397]
[1750151580214,0.38699313,106500.0,106490.0,0.51270397]
[1750151580658,0.57478717,106500.0,106490.0,0.51270397]
[1750151580873,0.80746598,106500.0,106490.0,0.47822393]
[1750151581086,0.80746598,106500.0,106490.0,0.61476328]
[1750151581087,0.79807667,106500.0,106490.0,0.61476328]
[1750151581750,0.79807667,106500.0,106490.0,0.6335442]
[1750151582214,0.81347667,106500.0,106490.0,0.6335442]
[1750151582905,0.80408718,106500.0,106490.0,0.62415383]
[1750151583187,0.7946976,106500.0,106490.0,0.62415383]
[1750151583652,0.7946976,106500.0,106490.0,0.47415383]
[1750151583893,0.7946976,106500.0,106490.0,0.24724176]
[1750151584136,1.01782287,106500.0,106490.0,0.151]
[1750151584393,1.03352287,106500.0,106490.0,0.151]
[1750151584883,0.79532213,106500.0,106490.0,0.151]
[1750151585360,1.12690474,106500.0,106490.0,0.151]
[1750151585603,0.77109299,106500.0,106490.0,0.151]
[1750151585843,0.61153299,106500.0,106490.0,0.1509]
[1750151586077,0.75559299,106500.0,106490.0,0.15]
[1750151586301,0.82934793,106500.0,106490.0,0.15]
[1750151586524,0.83134793,106500.0,106490.0,0.15]
[1750151586740,0.71567299,106500.0,106490.0,0.15939055]
[1750151586984,0.94818793,106500.0,106490.0,0.15]
[1750151587208,0.77290793,106500.0,106490.0,0.15]
[1750151587430,0.77290793,106500.0,106490.0,0.15939055]
[1750151587666,0.78229698,106500.0,106490.0,0.45283365]
[1750151587869,0.78229698,106500.0,106490.0,0.45283383]
[1750151588285,0.78229698,106500.0,106490.0,0.46222411]
[1750151588507,0.55917162,106500.0,106490.0,0.47161431]
[1750151588727,0.36198862,106500.0,106490.0,0.49650424]
[1750151588987,0.37121503,106500.0,106490.0,0.65638424]
[1750151589199,0.55900845,106500.0,106490.0,0.64699431]
[1750151589678,0.37121503,106500.0,106490.0,0.65638424]
[1750151589901,0.3806047,106500.0,106490.0,0.65638424]
[1750151590126,0.3806047,106500.0,106490.0,0.64699431]
[1750151590342,0.56839812,106500.0,106490.0,0.64699431]
[1750151590561,0.56839812,106500.0,106490.0,0.65638389]
[1750151591505,0.56839812,106500.0,106490.0,0.63760376]
[1750151591750,0.79152401,106500.0,106490.0,0.63760376]
[1750151591971,0.59434092,106500.0,106490.0,0.64699369]
[1750151592422,0.61312017,106500.0,106490.0,0.64699369]
[1750151592651,0.6037305,106500.0,106490.0,0.64699369]
[1750151592924,0.38060523,106500.0,106490.0,0.64699369]
[1750151593439,0.61312017,106500.0,106490.0,0.64699369]
[1750151593855,0.36182598,106500.0,106490.0,0.64699369]
[1750151594065,0.36182598,106500.0,106490.0,0.66317349]
[1750151594276,0.38060523,106500.0,106490.0,0.64699369]
[1750151594492,0.56839865,106500.0,106490.0,0.64699378]
[1750151595270,0.56839865,106500.0,106490.0,0.63760376]
[1750151595492,0.56839865,106500.0,106490.0,0.64699387]
[1750151595703,0.35243623,106500.0,106490.0,0.6563838]
[1750151595925,0.37121503,106500.0,106490.0,0.6563838]
[1750151597090,0.00304718,106500.0,106490.0,0.6714838]
[1750151597371,0.00304718,106500.0,106490.0,0.90399874]
[1750151597807,0.00104718,106500.0,106490.0,0.90399874]
[1750151598034,0.00104718,106500.0,106490.0,1.10399874]
[1750151598246,0.00104718,106500.0,106490.0,1.10499874]
[1750151598718,4.718e-05,106500.0,106490.0,1.10499874]
[1750151598935,4.718e-05,106500.0,106490.0,1.10399874]
[1750151599157,4.718e-05,106500.0,106490.0,1.10799874]
[1750151599398,4.718e-05,106500.0,106490.0,1.10599874]
[1750151599856,4.718e-05,106500.0,106490.0,1.10999874]
[1750151600508,4.718e-05,106500.0,106490.0,0.8774838]
[1750151600738,0.00943605,106500.0,106490.0,0.8774838]
[1750151601418,4.718e-05,106500.0,106490.0,0.8774838]
[1750151602077,4.718e-05,106500.0,106490.0,1.10999874]
[1750151603394,0.19722965,106500.0,106490.0,0.69555369]
[1750151603604,0.00943623,106500.0,106490.0,0.69555369]
[1750151603814,4.718e-05,106500.0,106490.0,0.71175369]
[1750151604044,0.00943614,106500.0,106490.0,0.71175369]
[1750151604498,4.718e-05,106500.0,106490.0,0.94426863]
[1750151604964,0.00943605,106500.0,106490.0,0.94426863]
[1750151605370,0.00943605,106500.0,106490.0,0.71175369]
[1750151605608,0.00943605,106500.0,106490.0,0.94426863]
[1750151606522,0.01882501,106500.0,106490.0,0.94426863]
[1750151607013,0.00943623,106500.0,106490.0,0.94426863]
[1750151607232,0.00943623,106500.0,106490.0,0.71175369]
[1750151607451,0.00943614,106500.0,106490.0,0.71175369]
[1750151607599,0.00943605,106500.0,106490.0,0.71175369]
[1750151608019,0.00943605,106500.0,106490.0,0.94426863]
[1750151608252,4.718e-05,106500.0,106490.0,0.94426863]
[1750151608511,0.00943605,106500.0,106490.0,0.94426863]
[1750151609066,4.718e-05,106500.0,106490.0,0.94426863]
[1750151609273,4.718e-05,106500.0,106490.0,1.14426863]
[1750151611244,4.718e-05,106500.0,106490.0,1.15367608]
[1750151611896,4.718e-05,106500.0,106490.0,1.14426863]
[1750151612112,4.718e-05,106500.0,106490.0,1.14402863]
[1750151612971,4.718e-05,106500.0,106490.0,0.94182863]
[1750151613390,4.718e-05,106500.0,106490.0,1.14394863]
[1750151614237,4.718e-05,106500.0,106490.0,1.15329492]
[1750151614445,4.718e-05,106500.0,106490.0,1.14394863]
[1750151618328,4.718e-05,106500.0,106490.0,0.91143369]
[1750151618489,4.718e-05,106500.0,106490.0,1.14394863]
[1750151619198,4.718e-05,106500.0,106490.0,1.15848948]
[1750151620610,4.718e-05,106500.0,106490.0,0.95636948]
[1750151620844,4.718e-05,106500.0,106490.0,1.15804948]
[1750151622092,4.718e-05,106500.0,106490.0,0.95636948]
[1750151622315,4.718e-05,106500.0,106490.0,1.15792948]
[1750151623113,4.718e-05,106500.0,106490.0,0.95636948]
[1750151623329,4.718e-05,106500.0,106490.0,1.15788948]
[1750151624387,4.718e-05,106500.0,106490.0,1.12714863]
[1750151625420,4.718e-05,106500.0,106490.0,1.12710863]
[1750151625634,4.718e-05,106500.0,106490.0,1.12702863]
[1750151627760,4.718e-05,106500.0,106490.0,1.14272863]
[1750151629695,4.718e-05,106500.0,106490.0,0.91021369]
[1750151629910,4.718e-05,106500.0,106490.0,1.14272863]
[1750151630730,4.718e-05,106500.0,106490.0,1.14240863]
[1750151631199,4.718e-05,106500.0,106490.0,0.69311369]
[1750151631414,4.718e-05,106500.0,106490.0,1.12670863]
[1750151632316,4.718e-05,106500.0,106490.0,1.12666863]
[1750151641822,4.718e-05,106500.0,106490.0,0.89415369]
[1750151642039,4.718e-05,106500.0,106490.0,1.12666863]
[1750151643478,4.718e-05,106500.0,106490.0,0.92562863]
[1750151643705,0.01614718,106500.0,106490.0,0.87801369]
[1750151643914,0.04113605,106500.0,106490.0,0.67801369]
[1750151644123,0.04113605,106500.0,106490.0,0.47761369]
[1750151644332,0.04113605,106500.0,106490.0,0.67801369]
[1750151645361,0.29242918,106500.0,106490.0,0.63501369]
[1750151645573,0.30181867,106500.0,106490.0,0.63501369]
[1750151645776,0.06930373,106500.0,106490.0,0.63501369]
[1750151647060,0.25709715,106500.0,106490.0,0.62562376]
[1750151647268,0.26648682,106500.0,106490.0,0.63501387]
[1750151647429,0.26648682,106500.0,106490.0,0.64440389]
[1750151648014,0.49900176,106500.0,106490.0,0.44005282]
[1750151648191,0.49900176,106500.0,106490.0,0.61619374]
[1750151648192,0.48022393,106500.0,106490.0,0.61619374]
[1750151648413,0.48022393,106500.0,106490.0,0.62558394]
[1750151648625,0.05991486,106500.0,106490.0,0.64436398]
[1750151649077,0.24770828,106500.0,106490.0,0.63497405]
[1750151649280,0.47083426,106500.0,106490.0,0.61615374]
[1750151650341,0.47083426,106500.0,106490.0,0.62554402]
[1750151651160,0.46144503,106500.0,106490.0,0.60680337]
[1750151651365,0.46144503,106500.0,106490.0,0.61619374]
[1750151652210,0.46144503,106500.0,106490.0,0.62558402]
[1750151652612,0.22893009,106500.0,106490.0,0.62558402]
[1750151652814,0.22893009,106500.0,106490.0,0.63497413]
[1750151654009,0.2477089,106500.0,106490.0,0.64436415]
[1750151654428,0.2477089,106500.0,106490.0,0.64436353]
[1750151654627,0.25709857,106500.0,106490.0,0.64436353]
[1750151655592,0.25709857,106500.0,106490.0,0.64424353]
[1750151656018,0.25709857,106500.0,106490.0,0.48700353]
[1750151656238,0.25709857,106500.0,106490.0,0.61599347]
[1750151656445,0.24770934,106500.0,106490.0,0.61599347]
[1750151656849,0.24770934,106500.0,106490.0,0.62538367]
[1750151657265,0.24770934,106500.0,106490.0,0.4870038]
[1750151657471,0.24770934,106500.0,106490.0,0.6441638]
[1750151657662,0.24770934,106500.0,106490.0,0.64416336]
[1750151657875,0.05052625,106500.0,106490.0,0.64416336]
[1750151658090,0.23831967,106500.0,106490.0,0.64416336]
[1750151658315,0.24770934,106500.0,106490.0,0.64416336]
[1750151658728,0.24770934,106500.0,106490.0,0.62538341]
[1750151659160,0.24770934,106500.0,106490.0,0.6159933]
[1750151659394,0.24770934,106500.0,106490.0,0.61599365]
[1750151659826,0.47083479,106500.0,106490.0,0.61623383]
[1750151660035,0.81083479,106500.0,106490.0,0.44944337]
[1750151660254,0.81083479,106500.0,106490.0,0.60680337]
[1750151660461,0.81083479,106500.0,106490.0,0.61619383]
[1750151662452,0.80144521,106500.0,106490.0,0.60680337]
[1750151662683,0.80144521,106500.0,106490.0,0.61619383]
[1750151662906,0.80144521,106500.0,106490.0,0.25224176]
[1750151663118,0.80144521,106500.0,106490.0,0.60672337]
[1750151663786,0.56893027,106500.0,106490.0,0.60672337]
[1750151664011,0.56893027,106500.0,106490.0,0.61611357]
[1750151664230,0.80144521,106500.0,106490.0,0.61611357]
[1750151665103,0.80144521,106500.0,106490.0,0.62550385]
[1750151665329,0.80144521,106500.0,106490.0,0.61611383]
[1750151666391,0.80144521,106500.0,106490.0,0.6255042]
[1750151667661,0.56893027,106500.0,106490.0,0.6255042]
[1750151667909,0.80144521,106500.0,106490.0,0.63489448]
[1750151668350,0.80144521,106500.0,106490.0,0.40952176]
[1750151668759,0.80144521,106500.0,106490.0,0.60672337]
[1750151668970,0.80144521,106500.0,106490.0,0.44944337]
[1750151669206,0.80144521,106500.0,106490.0,0.60656337]
[1750151669427,0.79205554,106500.0,106490.0,0.60656337]
[1750151671759,0.5595406,106500.0,106490.0,0.61595383]
[1750151671983,0.79205554,106500.0,106490.0,0.61595383]
[1750151673735,0.57831967,106500.0,106490.0,0.61595383]
[1750151673918,0.57831967,106500.0,106490.0,0.6253442]
[1750151674161,0.81083461,106500.0,106490.0,0.61595383]
[1750151674383,0.81083461,106500.0,106490.0,0.60656337]
[1750151674825,0.81083461,106500.0,106490.0,0.82595374]
[1750151675039,0.57831967,106500.0,106490.0,0.82595374]
[1750151675251,0.81083461,106500.0,106490.0,0.82595374]
[1750151675698,0.57831967,106500.0,106490.0,0.82595374]
[1750151676132,0.81083461,106500.0,106490.0,0.82595374]
[1750151676580,0.57831967,106500.0,106490.0,0.82595374]
[1750151676789,0.57831967,106500.0,106490.0,0.83534402]
[1750151677010,0.56271967,106500.0,106490.0,0.84473422]
[1750151677488,0.56271967,106500.0,106490.0,1.10323909]
[1750151677489,0.34004718,106500.0,106490.0,1.10323909]
[1750151677707,0.36821459,106500.0,106490.0,0.87072415]
[1750151677924,0.37760408,106500.0,106490.0,0.87072415]
[1750151678156,0.39310408,106500.0,106490.0,0.87072415]
[1750151678361,0.39310408,106500.0,106490.0,0.84473413]
[1750151678362,0.59028717,106500.0,106490.0,0.84473413]
[1750151678599,0.59028717,106500.0,106490.0,0.85412415]
[1750151678801,0.59028717,106500.0,106490.0,0.85412353]
[1750151679965,0.39310408,106500.0,106490.0,0.85412353]
[1750151680598,0.40249366,106500.0,106490.0,0.85412353]
[1750151681044,0.39310408,106500.0,106490.0,0.85412353]
[1750151681265,0.40249366,106500.0,106490.0,0.85412353]
[1750151681476,0.59028708,106500.0,106490.0,0.85412353]
[1750151681690,0.58089821,106500.0,106490.0,0.83534358]
[1750151681903,0.58089821,106500.0,106490.0,0.83534367]
[1750151682330,0.58089821,106500.0,106490.0,0.84473378]
[1750151682579,0.57150907,106500.0,106490.0,0.84473378]
[1750151683210,0.57150907,106500.0,106490.0,0.8541238]
[1750151684546,0.57150907,106500.0,106490.0,0.83534367]
[1750151685051,0.57150907,106500.0,106490.0,0.84473378]
[1750151685650,0.38371565,106500.0,106490.0,0.84473378]
[1750151685897,0.57150907,106500.0,106490.0,0.86952371]
[1750151686108,0.58089874,106500.0,106490.0,0.84473378]
[1750151686578,0.57150934,106500.0,106490.0,0.84473378]
[1750151687417,0.57150934,106500.0,106490.0,0.83534367]
[1750151687696,0.56211985,106500.0,106490.0,0.83534367]
[1750151687930,0.56211949,106500.0,106490.0,0.8447336]
[1750151688323,0.56211949,106500.0,106490.0,0.8603336]
[1750151688541,0.35554718,106500.0,106490.0,0.8603336]
[1750151688792,0.34004718,106500.0,106490.0,1.10794854]
[1750151689029,4.718e-05,106500.0,106490.0,1.10823739]
[1750151689281,4.718e-05,106500.0,106490.0,1.30823739]
[1750151690806,4.718e-05,106500.0,106490.0,1.16565824]
[1750151691056,4.718e-05,106500.0,106490.0,1.36375091]
[1750151691264,4.718e-05,106500.0,106490.0,1.37993071]
[1750151691472,4.718e-05,106500.0,106490.0,1.36375091]
[1750151691881,4.718e-05,106500.0,106490.0,1.36175091]
[1750151692088,4.718e-05,106500.0,106490.0,1.36475091]
[1750151692758,4.718e-05,106500.0,106490.0,1.36075091]
[1750151693153,4.718e-05,106500.0,106490.0,1.36475091]
[1750151694478,4.718e-05,106500.0,106490.0,1.13201445]
[1750151694704,4.718e-05,106500.0,106490.0,1.20831091]
[1750151694920,4.718e-05,106500.0,106490.0,1.41459091]
[1750151696458,4.718e-05,106500.0,106490.0,1.18185445]
[1750151696672,4.718e-05,106500.0,106490.0,1.41459091]
[1750151697100,4.718e-05,106500.0,106490.0,1.21659091]
[1750151697321,4.718e-05,106500.0,106490.0,1.41451091]
[1750151699078,4.718e-05,106500.0,106490.0,1.16659091]
[1750151699318,4.718e-05,106500.0,106490.0,1.36447091]
[1750151699537,4.718e-05,106500.0,106490.0,1.38065071]
[1750151699752,4.718e-05,106500.0,106490.0,1.36447091]
[1750151700387,4.718e-05,106500.0,106490.0,1.16659091]
[1750151700817,4.718e-05,106500.0,106490.0,1.36443091]
[1750151701030,4.718e-05,106500.0,106490.0,1.16659091]
[1750151701246,4.718e-05,106500.0,106490.0,1.36443091]
[1750151703467,4.718e-05,106500.0,106490.0,1.13165445]
[1750151703691,4.718e-05,106500.0,106490.0,1.36439091]
[1750151703912,4.718e-05,106500.0,106490.0,1.16659091]
[1750151704133,4.718e-05,106500.0,106490.0,1.36435091]
[1750151706780,4.718e-05,106500.0,106490.0,1.64708737]
[1750151706781,7.18e-06,106500.0,106490.0,1.64708737]
[1750151706991,0.09012872,106530.0,106520.0,0.36592082]
[1750151707214,0.43017603,106530.0,106520.0,0.61828258]
[1750151707869,0.43017603,106530.0,106520.0,0.46216258]
[1750151708089,0.35594731,106530.0,106520.0,0.61828258]
[1750151708345,0.01694731,106530.0,106520.0,0.62782958]
[1750151708790,0.00204731,106530.0,106520.0,0.47796258]
[1750151709006,0.00204731,106530.0,106520.0,0.86701904]
[1750151709223,0.00204731,106530.0,106520.0,0.63428258]
[1750151709452,0.01804731,106530.0,106520.0,0.63428258]
[1750151710178,0.00104731,106530.0,106520.0,0.86701904]
[1750151710403,4.731e-05,106530.0,106520.0,0.63528258]
[1750151710618,4.731e-05,106530.0,106520.0,0.86801904]
[1750151710841,0.01634731,106530.0,106520.0,0.86801904]
[1750151711047,0.01634731,106530.0,106520.0,0.63528258]
[1750151711481,0.01634731,106530.0,106520.0,0.61948258]
[1750151711928,0.01634731,106530.0,106520.0,0.46316258]
[1750151712170,0.27497018,106530.0,106520.0,0.46316258]
[1750151712397,0.27497018,106530.0,106520.0,0.61936258]
[1750151712398,0.26558377,106530.0,106520.0,0.61936258]
[1750151712853,0.27497009,106530.0,106520.0,0.61936258]
[1750151713068,0.27497,106530.0,106520.0,0.61936258]
[1750151713276,0.27497,106530.0,106520.0,0.47934238]
[1750151713539,0.27497,106530.0,106520.0,0.61944258]
[1750151713766,0.26558377,106530.0,106520.0,0.61944258]
[1750151714005,0.27497009,106530.0,106520.0,0.61944258]
[1750151714228,0.26558377,106530.0,106520.0,0.61944258]
[1750151715076,0.03284731,106530.0,106520.0,0.61944258]
[1750151717625,0.03284731,106530.0,106520.0,0.61940258]
[1750151717873,0.03284731,106530.0,106520.0,0.46316258]
[1750151718088,1.0448342,106530.0,106520.0,0.09724176]
[1750151718287,1.0448342,106530.0,106520.0,0.25662966]
[1750151718500,1.03544762,106530.0,106520.0,0.40356176]
[1750151718767,1.03544762,106530.0,106520.0,0.151]
[1750151721265,1.19184762,106530.0,106520.0,0.151]
[1750151725474,0.7263747,106530.0,106520.0,0.151]
[1750151725689,1.19184762,106530.0,106520.0,0.151]
[1750151726218,1.19184762,106530.0,106520.0,0.001]
[1750151726418,1.19184762,106530.0,106520.0,0.151]
[1750151727681,1.19184762,106530.0,106520.0,0.001]
[1750151727884,1.19184762,106530.0,106520.0,0.151]
[1750151728668,1.19184762,106530.0,106520.0,0.001]
[1750151728914,1.19184762,106530.0,106520.0,0.151]
[1750151730968,1.23284762,106530.0,106520.0,0.151]
[1750151731165,0.80271116,106530.0,106520.0,0.151]
[1750151731393,1.00011116,106530.0,106520.0,0.151]
[1750151732044,0.80271116,106530.0,106520.0,0.151]
[1750151732247,0.95871116,106530.0,106520.0,0.151]
[1750151733001,0.80271116,106530.0,106520.0,0.151]
[1750151733220,0.80271116,106530.0,106520.0,0.33875816]
[1750151733434,0.95871116,106530.0,106520.0,0.151]
[1750151733648,0.94932431,106530.0,106520.0,0.001]
[1750151733861,0.94932431,106530.0,106520.0,0.151]
[1750151734074,1.18206077,106530.0,106520.0,0.151]
[1750151742193,0.71658785,106530.0,106520.0,0.151]
[1750151742407,1.18206077,106530.0,106520.0,0.151]
[1750151742602,1.22334077,106530.0,106520.0,0.151]
[1750151743296,1.22334077,106530.0,106520.0,0.15]
[1750151743434,1.22534077,106530.0,106520.0,0.15]
[1750151743855,1.22434077,106530.0,106520.0,0.15]
[1750151744086,1.22634077,106530.0,106520.0,0.15]
[1750151744323,1.22734077,106530.0,106520.0,0.15]
[1750151744754,0.76186785,106530.0,106520.0,0.15]
[1750151744951,1.22734077,106530.0,106520.0,0.15]
[1750151745839,1.03006077,106530.0,106520.0,0.15]
[1750151746051,1.22734077,106530.0,106520.0,0.15]
[1750151746689,1.03006077,106530.0,106520.0,0.15]
[1750151746901,1.22734077,106530.0,106520.0,0.15]
[1750151750119,1.03006077,106530.0,106520.0,0.15]
[1750151750354,1.03006077,106530.0,106520.0,0.33775816]
[1750151750566,1.22734077,106530.0,106520.0,0.34714598]
[1750151751011,1.22734077,106530.0,106520.0,0.15]
[1750151753576,0.79732431,106530.0,106520.0,0.15]
[1750151753791,0.99456431,106530.0,106520.0,0.15]
[1750151754025,0.78082431,106530.0,106520.0,0.34714589]
[1750151754260,0.79021116,106530.0,106520.0,0.35653353]
[1750151754484,0.6118572,106530.0,106520.0,0.37530837]
[1750151754696,0.97433099,106530.0,106520.0,0.37530837]
[1750151755637,0.34943363,106530.0,106520.0,0.39120837]
[1750151755841,0.53555346,106530.0,106520.0,0.39120837]
[1750151756264,0.5261667,106530.0,106520.0,0.39120837]
[1750151756473,0.75890316,106530.0,106520.0,0.39120837]
[1750151757755,0.60294316,106530.0,106520.0,0.39120837]
[1750151758219,0.61232992,106530.0,106520.0,0.39120837]
[1750151758422,0.60294316,106530.0,106520.0,0.39120837]
[1750151759062,0.57478377,106530.0,106520.0,0.39120837]
[1750151759328,0.58417018,106530.0,106520.0,0.39120837]
[1750151759807,0.58417009,106530.0,106520.0,0.39120837]
[1750151760443,0.59355658,106530.0,106520.0,0.39120837]
[1750151760884,0.5935565,106530.0,106520.0,0.39120837]
[1750151762344,0.5935565,106530.0,106520.0,0.69120837]
[1750151762627,0.60294308,106530.0,106520.0,0.69120837]
[1750151763165,0.5935565,106530.0,106520.0,0.39120837]
[1750151764317,0.34204731,106530.0,106520.0,0.48745013]
[1750151764579,0.00204731,106530.0,106520.0,0.50395013]
[1750151764813,0.34204731,106530.0,106520.0,0.50395013]
[1750151765050,0.00204731,106530.0,106520.0,0.73668659]
[1750151765286,0.00104731,106530.0,106520.0,0.73668659]
[1750151765781,4.731e-05,106530.0,106520.0,0.73668659]
[1750151766016,4.731e-05,106530.0,106520.0,0.73768659]
[1750151766250,4.731e-05,106530.0,106520.0,0.73668659]
[1750151766487,4.731e-05,106530.0,106520.0,0.74068659]
[1750151766965,4.731e-05,106530.0,106520.0,0.75032882]
[1750151767395,4.731e-05,106530.0,106520.0,0.50795013]
[1750151767832,4.731e-05,106530.0,106520.0,0.80795013]
[1750151768046,4.731e-05,106530.0,106520.0,0.50795013]
[1750151772394,4.731e-05,106530.0,106520.0,0.80795013]
[1750151772827,4.731e-05,106530.0,106520.0,0.50795013]
[1750151773483,0.51966647,106530.0,106520.0,0.44738756]
[1750151773707,1.11836309,106530.0,106520.0,0.25024176]
[1750151773927,1.11836309,106530.0,106520.0,0.154]
[1750151774348,1.11836309,106530.0,106520.0,0.004]
[1750151774552,1.11836309,106530.0,106520.0,0.002]
[1750151774800,1.11836309,106530.0,106520.0,0.152]
[1750151775021,1.11936309,106530.0,106520.0,0.002]
[1750151775239,1.2301457,106530.0,106520.0,0.152]
[1750151775460,1.32629492,106530.0,106520.0,0.15]
[1750151775872,1.32929492,106530.0,106520.0,0.15]
[1750151776528,0.863822,106530.0,106520.0,0.15]
[1750151776743,1.2550662,106530.0,106520.0,0.15]
[1750151778718,1.2550662,106530.0,106480.0,0.36248633]
[1750151778719,0.0187803,106490.0,106480.0,0.36248633]
[1750151778923,0.01877977,106490.0,106480.0,0.45872809]
[1750151779129,0.02817005,106490.0,106480.0,0.45872809]
[1750151779362,0.03756042,106490.0,106480.0,0.30284809]
[1750151779582,0.06508396,106490.0,106480.0,0.45872809]
[1750151779795,0.06508396,106490.0,106480.0,0.30284809]
[1750151780019,0.06508396,106490.0,106480.0,0.46277527]
[1750151780232,0.48588766,106490.0,106480.0,0.44750516]
[1750151780451,0.50108766,106490.0,106480.0,0.6127765]
[1750151780673,0.84108766,106490.0,106480.0,0.62216775]
[1750151780899,0.83169738,106490.0,106480.0,0.25968037]
[1750151781129,0.81291655,106490.0,106480.0,0.45050907]
[1750151781567,0.58018009,106490.0,106480.0,0.44750898]
[1750151781784,0.81291655,106490.0,106480.0,0.45690023]
[1750151781999,0.81291655,106490.0,106480.0,0.45290023]
[1750151782223,0.81291655,106490.0,106480.0,0.4622914]
[1750151782449,0.81291655,106490.0,106480.0,0.4632914]
[1750151782708,0.81291655,106490.0,106480.0,0.45390023]
[1750151782928,0.81291655,106490.0,106480.0,0.09728894]
[1750151783143,0.81291655,106490.0,106480.0,0.24728894]
[1750151783566,0.81291655,106490.0,106480.0,0.43511764]
[1750151783796,0.81291655,106490.0,106480.0,0.44450907]
[1750151784657,0.82941655,106490.0,106480.0,0.15104718]
[1750151785106,0.82941655,106490.0,106480.0,0.15004718]
[1750151785338,0.83041655,106490.0,106480.0,0.15004718]
[1750151787485,0.98633655,106490.0,106480.0,0.15004718]
[1750151789699,0.81391655,106490.0,106480.0,0.15004718]
[1750151789914,0.96983655,106490.0,106480.0,0.15004718]
[1750151790134,0.98503655,106490.0,106480.0,0.15004718]
[1750151795950,0.73710009,106490.0,106480.0,0.15004718]
[1750151796185,0.81391655,106490.0,106480.0,0.15004718]
[1750151796387,0.82911655,106490.0,106480.0,0.15004718]
[1750151799604,0.81391655,106490.0,106480.0,0.15004718]
[1750151799821,0.96983655,106490.0,106480.0,0.15004718]
[1750151800039,0.79871655,106490.0,106480.0,0.33787588]
[1750151800264,0.57537029,106490.0,106480.0,0.46820023]
[1750151800493,0.60354123,106490.0,106480.0,0.5033823]
[1750151800709,0.60354123,106490.0,106480.0,0.51277347]
[1750151800935,0.60354123,106490.0,106480.0,0.51277303]
[1750151801155,0.40633953,106490.0,106480.0,0.51277259]
[1750151801586,0.40633953,106490.0,106480.0,0.66865259]
[1750151801855,0.41572999,106490.0,106480.0,0.66865259]
[1750151802070,0.38820645,106490.0,106480.0,0.66865259]
[1750151802283,0.341,106490.0,106480.0,0.66865259]
[1750151802495,0.35977995,106490.0,106480.0,0.66865259]
[1750151802707,0.36917023,106490.0,106480.0,0.66865259]
[1750151802922,0.36917032,106490.0,106480.0,0.66865259]
[1750151803111,0.36917023,106490.0,106480.0,0.66865259]
[1750151803353,0.35038984,106490.0,106480.0,0.66865259]
[1750151803573,0.36916997,106490.0,106480.0,0.66865259]
[1750151804389,0.37856034,106490.0,106480.0,0.66865259]
[1750151804634,0.36916997,106490.0,106480.0,0.66865259]
[1750151805066,0.37856034,106490.0,106480.0,0.66865259]
[1750151805892,0.36916997,106490.0,106480.0,0.66865259]
[1750151806515,0.36916988,106490.0,106480.0,0.66865259]
[1750151806728,0.36916979,106490.0,106480.0,0.66865259]
[1750151806971,0.37855999,106490.0,106480.0,0.66865259]
[1750151807187,0.38795027,106490.0,106480.0,0.66865259]
[1750151807857,0.37856043,106490.0,106480.0,0.66865259]
[1750151809626,0.36917015,106490.0,106480.0,0.66865259]
[1750151810475,0.35977995,106490.0,106480.0,0.66865259]
[1750151811146,0.35038993,106490.0,106480.0,0.66865259]
[1750151811371,0.001,106490.0,106480.0,0.90138905]
[1750151812682,0.001,106490.0,106480.0,0.66865259]
[1750151814930,0.61968268,106500.0,106490.0,0.21598165]
[1750151815151,0.61968268,106500.0,106490.0,0.32872341]
[1750151816482,0.62068268,106500.0,106490.0,0.32872341]
[1750151816703,0.61129319,106500.0,106490.0,0.32872341]
[1750151816918,0.62068268,106500.0,106490.0,0.32872341]
[1750151818902,0.60190379,106500.0,106490.0,0.32872341]
[1750151819323,0.3691675,106500.0,106490.0,0.32872341]
[1750151819545,0.37855699,106500.0,106490.0,0.32872341]
[1750151819753,0.3597781,106500.0,106490.0,0.32872341]
[1750151820176,0.36916741,106500.0,106490.0,0.32872341]